bitfinex/quotes_ETHUSD_20250625
["timestamp","ask_amount","ask_price","bid_price","bid_amount"]
[1750824747706,24.6,2440.1,2440.0,0.78]
[1750824748087,17.78,2440.1,2440.0,0.78]
[1750824748590,24.598,2440.1,2440.0,1.26786882]
[1750824748903,14.598,2440.1,2440.0,1.26786882]
[1750824749096,7.78,2440.1,2440.0,1.26786882]
[1750824749297,6.53461158,2440.6,2440.1,4.8580409]
[1750824749298,4.09748774,2440.6,2440.1,4.8580409]
[1750824749509,7.78,2440.8,2440.3,4.0978285]
[1750824749696,7.78,2440.8,2440.5,0.76]
[1750824749895,7.78,2440.8,2440.5,4.8575163]
[1750824750126,7.78,2440.8,2440.6,0.7533]
[1750824750428,7.78,2440.8,2440.6,4.09724413]
[1750824750599,8.99123298,2440.9,2440.8,0.8182]
[1750824750779,8.99123298,2440.9,2440.8,5.40675589]
[1750824751521,7.78,2440.9,2440.8,5.40675589]
[1750824753888,18.69576029,2441.6,2441.1,0.7947]
[1750824754305,18.69576029,2441.6,2441.2,0.7947]
[1750824755986,17.78,2441.6,2441.2,0.7947]
[1750824756307,17.78,2441.6,2441.3,0.8233]
[1750824756308,28.69167535,2441.6,2441.3,0.8233]
[1750824756817,28.6916892,2441.6,2441.3,0.8233]
[1750824757513,21.8756892,2441.6,2441.3,0.8233]
[1750824757817,28.6916892,2441.6,2441.3,0.8233]
[1750824758188,17.78,2441.6,2441.3,0.8233]
[1750824758387,17.78,2441.6,2441.4,0.60002117]
[1750824759418,21.87567652,2441.6,2441.4,0.60002117]
[1750824760332,21.87567652,2441.6,2441.3,0.8233]
[1750824760625,4.09601048,2441.4,2441.3,0.8233]
[1750824760787,13.93652338,2441.5,2440.7,0.8321]
[1750824760990,4.09670136,2441.0,2440.7,0.8321]
[1750824761595,6.815,2441.1,2440.7,0.8321]
[1750824761817,6.815,2441.1,2440.1,10.0]
[1750824761818,4.09701737,2440.8,2440.3,1.817]
[1750824762123,4.09776581,2440.4,2440.1,0.8321]
[1750824762293,10.91570692,2440.4,2440.1,0.8321]
[1750824762494,6.818,2440.4,2440.1,0.8321]
[1750824762717,4.09802475,2440.2,2440.1,0.8321]
[1750824762922,10.91502475,2440.2,2440.1,0.8321]
[1750824764720,10.91502475,2440.2,2440.0,0.02]
[1750824767638,4.09819269,2440.1,2440.0,0.02]
[1750824768005,6.817,2440.2,2440.0,0.02]
[1750824773426,4.09776631,2440.4,2440.0,0.02]
[1750824773602,6.816,2440.2,2440.0,0.51115067]
[1750824775724,6.816,2440.2,2440.0,4.60946845]
[1750824775927,6.816,2440.3,2440.1,4.87927094]
[1750824776107,11.87759452,2440.5,2440.1,4.87927094]
[1750824776108,6.816,2440.4,2440.1,4.87927094]
[1750824776306,7.78,2440.5,2440.1,4.87927094]
[1750824776530,7.78,2440.5,2440.2,0.94887629]
[1750824776728,7.78,2440.5,2440.3,4.09785145]
[1750824777029,7.78,2440.5,2440.3,0.7811]
[1750824777201,7.78,2440.5,2440.4,4.0976889]
[1750824778226,24.596,2440.8,2440.5,4.09747044]
[1750824778531,24.596,2440.8,2440.4,4.0976889]
[1750824778532,17.78,2440.8,2440.6,4.8784381]
[1750824778909,7.78,2440.8,2440.6,4.8784381]
[1750824779115,7.78,2440.9,2440.6,4.8784381]
[1750824779794,6.815,2441.0,2440.6,4.8784381]
[1750824779993,6.815,2441.0,2440.6,5.82649778]
[1750824780305,10.91169455,2441.0,2440.6,1.72915968]
[1750824781028,4.09669455,2441.0,2440.6,1.72915968]
[1750824781224,4.09685047,2440.9,2440.6,1.72915968]
[1750824781730,10.91177036,2441.0,2440.6,1.72915968]
[1750824782549,4.0968575,2440.9,2440.6,1.72915968]
[1750824783433,4.09710226,2440.8,2440.3,4.89771994]
[1750824785234,4.09710226,2440.8,2440.4,4.09768197]
[1750824786033,4.09710226,2440.8,2440.3,4.89766106]
[1750824786527,10.91195358,2440.9,2440.4,4.09768509]
[1750824786733,10.91195358,2440.9,2440.5,0.48975851]
[1750824787547,4.09703589,2440.8,2440.5,0.48975851]
[1750824788854,10.91193969,2440.9,2440.5,0.48975851]
[1750824789522,6.815,2440.9,2440.5,0.48975851]
[1750824789849,10.9119261,2440.9,2440.5,0.48975851]
[1750824790145,10.9119261,2440.9,2440.6,0.8296]
[1750824790843,4.88598022,2440.8,2440.3,4.09785348]
[1750824791150,4.09708022,2440.8,2440.3,4.09785348]
[1750824792342,4.09719894,2440.7,2440.3,4.09785348]
[1750824792514,4.09719894,2440.7,2440.2,0.94887629]
[1750824792715,4.0974418,2440.6,2440.2,0.94887629]
[1750824793069,10.9114418,2440.6,2440.3,0.57991222]
[1750824794315,6.814,2440.6,2440.3,0.57991222]
[1750824795049,10.91138282,2440.6,2440.2,0.94887629]
[1750824795545,10.91138282,2440.6,2440.2,5.04686977]
[1750824795934,6.814,2440.6,2440.2,5.04686977]
[1750824796320,10.91135963,2440.6,2440.2,0.94887629]
[1750824796856,6.814,2440.6,2440.3,0.57990932]
[1750824797154,4.09694728,2440.9,2440.4,4.09766586]
[1750824797324,6.814,2440.8,2440.5,0.8296]
[1750824797520,0.8038,2440.7,2440.3,4.6776842]
[1750824797721,10.91109043,2440.8,2440.4,0.87756389]
[1750824798154,4.09718829,2440.7,2440.4,0.87756389]
[1750824801951,10.91110885,2440.8,2440.4,0.87756389]
[1750824802860,4.09727191,2440.7,2440.4,0.87756389]
[1750824805960,4.09692568,2440.9,2440.4,4.97517858]
[1750824806263,10.0,2441.0,2440.5,0.58047786]
[1750824806784,10.90986624,2440.9,2440.5,0.58047786]
[1750824807169,4.09686624,2440.9,2440.5,4.67798842]
[1750824807372,10.90986624,2440.9,2440.5,4.67798842]
[1750824807758,14.09676935,2441.0,2440.6,0.7517]
[1750824808074,10.90989542,2440.9,2440.6,0.7517]
[1750824808266,10.90989542,2440.9,2440.6,1.29467884]
[1750824809262,6.813,2440.9,2440.6,1.29467884]
[1750824811127,10.90991219,2440.9,2440.6,1.29467884]
[1750824812359,10.90991219,2440.9,2440.3,4.09779069]
[1750824812360,4.09702238,2440.8,2440.3,4.09779069]
[1750824813666,4.09721645,2440.7,2440.2,4.88844908]
[1750824813871,4.09776064,2440.4,2440.0,0.02]
[1750824814031,4.09761586,2440.5,2440.0,4.11835716]
[1750824814237,4.09761586,2440.5,2440.1,0.67158572]
[1750824815137,4.09772012,2440.4,2440.1,0.67158572]
[1750824816174,4.09761269,2440.5,2440.1,0.67158572]
[1750824816674,4.09769083,2440.4,2440.1,0.67158572]
[1750824818177,4.09761462,2440.5,2440.1,0.67158572]
[1750824820073,6.812,2440.7,2440.3,4.87925374]
[1750824820602,6.812,2440.7,2440.4,4.0976232]
[1750824823273,4.09701751,2440.8,2440.3,0.7815]
[1750824823476,6.812,2440.7,2440.3,4.8792725]
[1750824823684,6.812,2440.7,2440.3,5.89205566]
[1750824824283,6.812,2440.7,2440.3,5.89204658]
[1750824826874,6.811,2440.7,2440.3,5.89204658]
[1750824829214,6.811,2440.7,2440.4,4.09767533]
[1750824829410,16.811,2441.0,2440.7,0.7744]
[1750824829619,7.78,2441.1,2440.7,0.7744]
[1750824829910,7.78,2441.1,2440.7,1.261569]
[1750824830122,7.78,2441.1,2440.9,4.09682971]
[1750824830281,4.85891994,2441.5,2441.0,4.09668168]
[1750824830471,6.811,2441.4,2441.0,4.09668168]
[1750824830676,10.0,2441.3,2441.0,4.09668168]
[1750824831310,6.811,2441.3,2440.9,4.09675456]
[1750824831474,10.9071787,2441.3,2440.8,4.09693478]
[1750824833678,6.811,2441.3,2440.9,4.0968419]
[1750824833879,14.09607846,2441.4,2440.9,4.0968419]
[1750824834126,6.81,2441.3,2440.9,4.0968419]
[1750824834415,10.9061929,2441.3,2440.8,4.99376723]
[1750824834608,6.81,2441.3,2440.9,4.09683996]
[1750824835310,20.9060905,2441.4,2440.9,4.09683996]
[1750824836413,14.0960905,2441.4,2440.9,4.09683996]
[1750824836610,10.0,2441.4,2441.0,4.09668168]
[1750824836813,16.809,2441.4,2441.0,4.09668168]
[1750824837021,16.809,2441.5,2441.1,4.09651186]
[1750824837183,7.78,2441.7,2441.2,0.7905]
[1750824837389,6.809,2441.6,2441.2,5.37546645]
[1750824837914,10.90467817,2441.6,2441.2,1.27919848]
[1750824838132,6.809,2441.6,2440.9,0.98651993]
[1750824838412,4.86661675,2441.5,2441.0,4.88705886]
[1750824838818,10.0,2441.6,2440.7,1.805]
[1750824838997,14.588,2441.7,2441.4,0.7824]
[1750824839314,7.78,2441.7,2441.4,0.7824]
[1750824839526,7.78,2441.7,2441.4,4.87836483]
[1750824840030,1.65197655,2441.8,2441.6,4.09564492]
[1750824840191,4.92281516,2442.3,2441.7,4.09539829]
[1750824840527,10.90274124,2442.2,2441.6,4.92319475]
[1750824840720,4.09491392,2442.1,2441.6,4.92319475]
[1750824841118,10.0,2442.1,2441.7,4.09549297]
[1750824841294,14.09484975,2442.1,2441.6,4.92318047]
[1750824842003,20.90184975,2442.1,2441.6,4.92318047]
[1750824842926,4.09500716,2442.0,2441.6,4.92318047]
[1750824843331,4.09517527,2441.9,2441.6,0.8276]
[1750824843930,4.09508898,2442.0,2441.6,0.8276]
[1750824845899,4.09508898,2442.0,2441.6,4.9232717]
[1750824846101,4.09508898,2442.0,2441.6,0.8276]
[1750824847032,20.90190664,2442.1,2441.6,4.9232637]
[1750824847235,16.807,2442.1,2441.7,4.09547904]
[1750824848938,10.0,2442.1,2441.7,4.09547904]
[1750824849136,16.805,2442.1,2441.7,4.09547904]
[1750824849335,4.09459358,2442.3,2441.8,4.09530467]
[1750824849636,14.09464509,2442.3,2441.9,0.56381625]
[1750824849816,10.0,2442.3,2441.8,4.09526683]
[1750824850019,6.805,2442.2,2441.8,4.09518694]
[1750824850431,10.0,2442.3,2441.9,4.09505094]
[1750824850740,6.805,2442.2,2441.9,4.09505094]
[1750824850942,6.805,2442.2,2441.8,4.09524689]
[1750824851111,14.09451661,2442.3,2441.8,4.09524689]
[1750824851112,14.09451661,2442.3,2441.8,5.09624439]
[1750824851443,6.805,2442.2,2441.8,4.09524689]
[1750824852140,6.804,2442.2,2441.8,4.09524689]
[1750824852541,6.804,2442.2,2441.7,4.09542506]
[1750824852542,4.09467677,2442.2,2441.7,4.09542506]
[1750824852713,10.0,2442.3,2441.8,4.09519927]
[1750824852914,10.0,2442.3,2441.9,0.81906243]
[1750824853109,16.804,2442.3,2441.9,0.81906243]
[1750824853336,10.0,2442.3,2441.9,0.81906243]
[1750824853732,20.89850792,2442.3,2441.9,0.81906243]
[1750824853942,10.0,2442.3,2441.9,4.91421466]
[1750824854240,20.89850192,2442.3,2441.9,0.81906243]
[1750824854463,16.804,2442.3,2441.9,4.91421055]
[1750824854617,16.804,2442.3,2441.9,0.81906243]
[1750824854816,16.804,2442.3,2441.9,4.91422179]
[1750824855045,20.89850908,2442.3,2441.9,0.81906243]
[1750824855237,20.89850908,2442.3,2441.9,4.91421467]
[1750824855238,16.804,2442.3,2441.9,4.91421467]
[1750824855438,16.804,2442.3,2441.9,0.81906243]
[1750824855951,6.804,2442.3,2442.0,5.36511386]
[1750824856154,6.803,2442.3,2442.0,5.36511386]
[1750824857562,10.0,2442.4,2442.0,5.36511386]
[1750824857762,5.89793253,2442.7,2442.1,4.09476397]
[1750824857763,2.5931,2442.7,2442.1,4.09476397]
[1750824857921,10.0,2442.4,2442.1,4.63127536]
[1750824858428,4.09465054,2442.3,2441.8,4.09525332]
[1750824858630,4.09465054,2442.3,2441.8,4.88315332]
[1750824859435,14.09441211,2442.4,2441.9,4.09511903]
[1750824860046,14.09441211,2442.4,2441.8,4.88315117]
[1750824860253,14.09441211,2442.4,2441.8,5.96141038]
[1750824861130,14.09441211,2442.4,2441.9,4.09517149]
[1750824861337,14.09441211,2442.4,2441.8,5.96140265]
[1750824862456,14.09441211,2442.4,2441.9,4.09516443]
[1750824864945,10.0,2442.4,2442.0,4.09499256]
[1750824865428,10.0,2442.4,2442.0,5.10064071]
[1750824866049,10.0,2442.4,2442.1,0.76]
[1750824866674,4.09466874,2442.2,2441.6,0.76]
[1750824866971,6.8,2442.1,2441.4,6.53461158]
[1750824867176,6.8,2442.1,2442.0,4.09500409]
[1750824867471,6.8,2442.3,2442.0,4.09500409]
[1750824867773,6.8,2442.3,2441.9,4.09517136]
[1750824867774,0.7968,2442.7,2442.2,4.85465426]
[1750824868068,16.8,2442.6,2442.2,4.85465426]
[1750824868367,4.09378992,2442.8,2442.3,4.09444009]
[1750824868575,6.8,2442.7,2442.3,4.09444009]
[1750824869277,11.87350708,2442.9,2442.3,4.09444009]
[1750824869426,2.67906144,2443.7,2442.6,0.8033]
[1750824869633,0.784,2443.5,2442.7,4.09372882]
[1750824869964,4.09308579,2443.2,2442.7,4.09372882]
[1750824870132,6.799,2443.2,2442.7,4.09372882]
[1750824870335,6.799,2443.2,2442.8,4.09362761]
[1750824870545,4.09291,2443.3,2442.7,4.09374574]
[1750824870865,4.09267609,2443.4,2442.7,4.09374574]
[1750824870866,10.89200552,2443.2,2442.7,4.09374574]
[1750824872376,4.09318583,2443.1,2442.6,0.8033]
[1750824872537,4.85799376,2443.1,2442.6,0.8033]
[1750824873047,14.09344357,2443.0,2442.6,0.8033]
[1750824875370,14.85794449,2443.1,2442.6,0.8033]
[1750824875547,14.85794449,2443.1,2442.6,4.89728029]
[1750824875868,10.7647,2443.1,2442.6,0.8033]
[1750824876053,4.09441719,2442.4,2442.2,0.8314]
[1750824876254,10.89141719,2442.4,2442.0,0.8314]
[1750824876454,4.09464731,2442.3,2441.7,4.09539268]
[1750824876647,11.69030086,2442.4,2441.8,1.83050018]
[1750824876848,4.09450108,2442.3,2441.8,5.92582317]
[1750824879650,4.09469209,2442.2,2441.8,1.83050018]
[1750824879856,6.797,2442.1,2441.8,1.83050018]
[1750824881055,10.89183868,2442.1,2441.8,1.83050018]
[1750824881259,10.89183868,2442.1,2441.6,5.89558442]
[1750824881260,4.09500571,2442.0,2441.6,2.5576]
[1750824881460,4.09500571,2442.0,2441.6,0.7576]
[1750824882180,4.09524602,2441.9,2441.6,0.7576]
[1750824882556,4.09535479,2441.8,2441.3,5.89610588]
[1750824882762,6.797,2441.8,2441.4,1.8197401]
[1750824883062,6.797,2441.8,2440.7,0.8205]
[1750824883374,4.09586551,2441.5,2441.0,4.91709963]
[1750824883544,6.797,2441.4,2441.0,4.91709963]
[1750824886081,6.797,2441.4,2441.1,4.09651253]
[1750824887080,6.797,2441.4,2441.1,4.09651386]
[1750824887275,6.797,2441.4,2441.2,0.90136298]
[1750824888553,6.797,2441.4,2441.2,4.99768319]
[1750824889787,14.09559679,2441.7,2441.2,4.99768319]
[1750824889965,6.797,2441.6,2441.2,4.09632021]
[1750824890986,10.8926766,2441.6,2441.2,4.09632021]
[1750824893389,10.8926766,2441.6,2441.1,4.09644172]
[1750824893886,4.0958839,2441.5,2441.0,4.91708653]
[1750824894087,4.88887598,2441.5,2441.0,0.8205]
[1750824894387,4.09610224,2441.4,2441.0,0.8205]
[1750824896491,4.88891261,2441.5,2441.0,4.9171701]
[1750824897157,4.0958475,2441.5,2441.1,4.09645135]
[1750824900402,0.8216,2441.4,2440.6,2.5785]
[1750824900594,4.09635229,2441.2,2440.7,4.35494789]
[1750824900794,4.09654536,2441.1,2440.7,0.25785]
[1750824900976,4.09672447,2441.0,2440.6,2.5785]
[1750824901899,4.0965977,2441.1,2440.6,6.67580922]
[1750824902076,4.09643187,2441.2,2440.7,4.09717832]
[1750824902407,4.09651968,2441.1,2440.7,4.09717832]
[1750824903317,10.89224734,2441.3,2440.6,2.5785]
[1750824903318,0.8247,2441.7,2440.8,0.8285]
[1750824903609,0.8247,2441.7,2441.0,0.8285]
[1750824903610,10.0,2441.6,2441.0,0.8285]
[1750824903813,4.09643679,2441.2,2440.8,0.8285]
[1750824904381,4.09653098,2441.1,2440.8,0.8285]
[1750824904601,4.09643341,2441.2,2440.8,0.8285]
[1750824905089,4.09643341,2441.2,2440.8,4.92550925]
[1750824905289,11.71694991,2441.3,2440.8,5.62515541]
[1750824905736,6.796,2441.4,2441.1,4.09650583]
[1750824905877,6.796,2441.4,2441.0,4.8519045]
[1750824906512,4.09585401,2441.5,2441.0,4.8519045]
[1750824906699,10.89185401,2441.5,2441.0,4.8519045]
[1750824908692,7.08461158,2441.1,2440.0,0.02]
[1750824909048,4.09803619,2440.2,2440.0,0.02]
[1750824910918,6.805,2440.3,2440.0,0.8506]
[1750824911234,6.803,2440.4,2440.0,0.8506]
[1750824911433,10.90071999,2440.4,2440.1,0.49490216]
[1750824912345,6.803,2440.4,2440.1,0.49490216]
[1750824916368,0.55,2440.1,2440.0,0.02]
[1750824916552,21.65079269,2440.1,2440.0,0.02]
[1750824917463,20.91019269,2440.1,2440.0,0.02]
[1750824917627,4.09809176,2440.2,2440.0,0.02]
[1750824917816,4.09819269,2440.1,2440.0,0.02]
[1750824919122,10.9101134,2440.2,2440.0,0.02]
[1750824919549,6.812,2440.2,2440.0,0.02]
[1750824919761,6.812,2440.4,2440.0,0.02]
[1750824920036,1.75000003,2440.8,2440.1,0.8283]
[1750824920236,4.09782513,2440.4,2440.1,0.8283]
[1750824921114,4.09792734,2440.3,2440.1,0.8283]
[1750824921329,4.09792734,2440.3,2440.0,1.819]
[1750824922066,20.63280427,2440.1,2440.0,0.02]
[1750824922280,28.22650427,2440.1,2440.0,0.02]
[1750824924080,21.69189269,2440.1,2440.0,0.02]
[1750824924235,14.88389269,2440.1,2440.0,0.02]
[1750824924435,21.70389269,2440.1,2440.0,0.02]
[1750824924768,24.42873813,2440.1,2440.0,0.02]
[1750824926065,17.60873813,2440.1,2440.0,0.02]
[1750824926257,24.42673813,2440.1,2440.0,0.02]
[1750824928183,4.88323675,2439.3,2439.2,0.2224638]
[1750824928466,14.88323675,2439.3,2439.2,0.2224638]
[1750824928656,20.99353675,2439.3,2439.2,0.2224638]
[1750824933061,20.99353675,2439.3,2438.2,4.10131214]
[1750824933062,4.10172272,2438.0,2437.9,0.005]
[1750824933774,11.04672272,2438.0,2437.9,0.005]
[1750824934172,21.59672272,2438.0,2437.9,0.005]
[1750824934372,21.05672272,2438.0,2437.9,0.005]
[1750824934572,14.10189368,2437.9,2437.3,4.10276616]
[1750824934740,6.965,2437.8,2437.4,4.51296779]
[1750824935147,6.969,2437.8,2437.5,5.98454991]
[1750824935381,0.7855,2438.6,2437.5,1.882]
[1750824935557,6.971,2438.6,2438.2,4.10137126]
[1750824935740,6.971,2438.6,2438.2,5.98337126]
[1750824936076,11.07245585,2438.8,2438.3,4.10117721]
[1750824936277,4.10066309,2438.7,2438.2,1.882]
[1750824936473,11.07245923,2438.8,2438.2,1.882]
[1750824936678,4.10055456,2438.7,2438.2,1.882]
[1750824936876,6.974,2438.6,2438.2,5.9833066]
[1750824937087,6.973,2438.6,2438.3,4.69950987]
[1750824937287,6.973,2438.8,2438.4,4.1009026]
[1750824937465,6.973,2438.8,2438.6,0.7551]
[1750824937975,5.77250297,2439.1,2438.6,0.7551]
[1750824938178,11.07105215,2439.0,2438.6,1.882]
[1750824938375,4.53885498,2438.9,2438.3,4.10113517]
[1750824938568,4.10031867,2438.9,2438.3,4.10113517]
[1750824938764,0.7908,2438.8,2437.9,0.7551]
[1750824938970,6.993,2438.7,2438.4,4.10089023]
[1750824939367,10.0,2439.0,2438.2,0.7551]
[1750824939572,6.994,2438.9,2438.6,4.10058644]
[1750824939890,6.994,2438.9,2438.7,0.8226]
[1750824940262,6.994,2438.9,2438.7,4.92308886]
[1750824940594,1.67258711,2439.1,2438.8,4.10034778]
[1750824940765,4.09961826,2439.3,2438.8,4.10034778]
[1750824940766,6.992,2439.0,2438.8,4.10034778]
[1750824940967,6.99,2439.1,2438.8,4.10034778]
[1750824941163,6.989,2439.1,2438.8,4.10034778]
[1750824941363,6.989,2439.1,2438.9,4.10020461]
[1750824942000,10.0,2439.3,2438.9,4.10020461]
[1750824942166,6.985,2439.2,2438.9,4.10020461]
[1750824942491,10.0,2439.4,2439.0,4.10000949]
[1750824942664,6.985,2439.4,2439.0,4.10000949]
[1750824942863,6.985,2439.4,2439.1,4.09986133]
[1750824944090,14.09899858,2439.7,2439.3,0.755]
[1750824944291,4.09899858,2439.7,2439.3,0.755]
[1750824944494,6.979,2439.6,2439.3,0.755]
[1750824944700,6.979,2439.6,2439.3,4.8545302]
[1750824944997,3.55870349,2440.0,2439.3,0.755]
[1750824945189,11.07543324,2440.0,2439.5,4.09919064]
[1750824945585,4.09856237,2439.9,2439.4,4.09932449]
[1750824945965,4.09856237,2439.9,2439.3,2.637]
[1750824946170,4.09856237,2439.9,2439.3,7.41008864]
[1750824946780,4.09856237,2439.9,2439.4,4.09932899]
[1750824948205,11.07541657,2440.0,2439.5,4.09917216]
[1750824952300,4.90437877,2440.4,2439.9,4.09850347]
[1750824952488,6.954,2440.1,2440.0,0.8331]
[1750824952687,6.956,2440.3,2440.0,0.8331]
[1750824953399,4.09706757,2440.8,2440.2,4.09799081]
[1750824953566,4.09709913,2440.8,2440.3,4.09780053]
[1750824953766,4.92368043,2441.0,2440.4,1.881]
[1750824953767,0.8269,2441.0,2440.4,1.881]
[1750824953977,4.84907826,2441.3,2440.8,4.09698272]
[1750824954192,6.957,2441.2,2440.6,0.7897]
[1750824954505,7.85249735,2441.3,2440.9,4.09683443]
[1750824954683,10.0,2441.2,2440.8,4.09693297]
[1750824954883,10.0,2441.2,2440.9,1.881]
[1750824955081,4.09560802,2441.7,2441.1,4.09639154]
[1750824955275,10.0,2441.5,2441.2,4.88954535]
[1750824955470,14.09585557,2441.5,2441.2,0.7932]
[1750824955677,4.09608301,2441.4,2441.2,0.7932]
[1750824956200,11.0527486,2441.6,2441.2,0.7932]
[1750824956400,12.32190834,2441.6,2441.2,0.7932]
[1750824956900,10.0,2441.5,2441.2,0.7932]
[1750824957481,10.0,2441.5,2441.2,4.88953942]
[1750824957667,6.95,2441.6,2441.2,4.88953942]
[1750824958273,6.95,2441.6,2441.3,4.09617297]
[1750824958703,6.95,2441.6,2441.2,4.88946697]
[1750824959094,6.95,2441.6,2441.2,0.7932]
[1750824959410,11.04571765,2441.6,2441.2,0.7932]
[1750824959577,11.04571765,2441.6,2441.2,4.88952046]
[1750824959578,6.95,2441.6,2441.2,4.88952046]
[1750824960488,6.941,2441.6,2441.2,4.88952046]
[1750824960693,11.03668288,2441.6,2441.2,1.50773545]
[1750824961210,11.03668288,2441.6,2441.2,0.7932]
[1750824962073,4.09553865,2441.7,2441.2,4.88940601]
[1750824962280,6.934,2441.7,2441.3,4.0961724]
[1750824962688,10.0,2441.8,2441.4,1.881]
[1750824962891,1.881,2442.5,2441.7,4.09547866]
[1750824962892,0.8138,2442.5,2441.7,4.09547866]
[1750824963094,4.09452729,2442.3,2441.8,4.09521256]
[1750824963528,6.932,2442.4,2441.6,0.7623]
[1750824963679,10.0,2442.3,2441.7,1.88]
[1750824963883,4.09498803,2442.1,2441.6,2.6423]
[1750824964083,11.03198803,2442.1,2441.6,2.6423]
[1750824964320,4.09502986,2442.0,2441.6,2.6423]
[1750824964515,4.09502986,2442.0,2441.6,3.72569896]
[1750824964884,11.03191001,2442.1,2441.6,7.82135621]
[1750824965079,6.937,2442.1,2441.7,4.09549499]
[1750824965821,6.932,2442.0,2441.7,4.09549499]
[1750824966520,11.02703239,2442.0,2441.6,3.72569896]
[1750824966707,6.932,2442.0,2441.6,7.82129671]
[1750824967086,6.932,2442.0,2441.6,1.84569896]
[1750824967087,11.02702462,2442.0,2441.6,1.84569896]
[1750824967290,11.0270942,2442.0,2441.6,1.84569896]
[1750824967691,6.932,2442.0,2441.7,4.09548658]
[1750824967891,6.926,2442.0,2441.7,5.28717868]
[1750824968602,6.926,2442.0,2441.7,5.2871925]
[1750824969921,10.0,2442.3,2441.8,4.09533317]
[1750824969922,16.924,2442.3,2441.8,4.09533317]
[1750824970091,4.90839782,2442.7,2441.9,4.88863973]
[1750824970293,10.0,2442.5,2442.1,4.09481406]
[1750824970487,16.918,2442.5,2442.1,5.16047755]
[1750824970694,16.918,2442.5,2442.1,1.06566349]
[1750824970893,4.09433807,2442.4,2442.1,1.06566349]
[1750824971794,21.01225036,2442.5,2442.1,1.06566349]
[1750824972529,4.09436429,2442.4,2442.1,1.06566349]
[1750824972688,4.09436429,2442.4,2442.1,1.88]
[1750824973310,4.09436429,2442.4,2441.9,4.88857686]
[1750824973506,4.09436429,2442.4,2442.0,1.879]
[1750824973921,4.09436429,2442.4,2442.1,1.879]
[1750824974323,4.09436429,2442.4,2441.9,4.88857686]
[1750824974534,4.09436429,2442.4,2442.0,0.89839056]
[1750824974732,4.09459014,2442.3,2442.0,0.89839056]
[1750824974893,4.09469238,2442.2,2442.0,0.89839056]
[1750824975218,4.09459014,2442.3,2442.0,1.879]
[1750824975219,4.0945954,2442.3,2442.0,1.879]
[1750824976430,4.09445534,2442.4,2442.0,1.879]
[1750824976817,4.09445534,2442.4,2442.0,2.55576136]
[1750824978312,21.01225526,2442.5,2442.1,4.09482992]
[1750824978512,20.99225526,2442.5,2442.0,6.65066262]
[1750824979320,16.898,2442.5,2442.1,4.09477997]
[1750824980435,4.09440791,2442.4,2442.1,1.879]
[1750824980606,20.99231124,2442.5,2442.1,1.879]
[1750824981735,20.99231124,2442.5,2442.1,5.97382272]
[1750824981918,20.9922928,2442.5,2442.1,1.879]
[1750824982332,20.9842928,2442.5,2442.1,1.879]
[1750824982633,20.9782928,2442.5,2442.1,1.879]
[1750824982839,4.09435002,2442.4,2442.1,1.879]
[1750824983024,16.884,2442.5,2442.1,6.30866171]
[1750824983356,6.883,2442.5,2442.3,0.7982]
[1750824983745,10.0,2442.7,2442.3,4.89264969]
[1750824984035,6.881,2442.6,2442.3,4.89264969]
[1750824984201,6.881,2442.6,2442.3,6.01277882]
[1750824984605,10.0,2442.7,2442.3,1.91832913]
[1750824984606,20.97483627,2442.7,2442.3,1.91832913]
[1750824984824,4.09400986,2442.6,2442.3,1.91832913]
[1750824986303,20.97492141,2442.7,2442.3,1.91832913]
[1750824986834,20.97492141,2442.7,2442.3,6.01282851]
[1750824987004,4.09402816,2442.6,2442.3,1.91832913]
[1750824988754,4.09401476,2442.6,2442.3,1.12012913]
[1750824988928,4.09401476,2442.6,2442.1,7.09798811]
[1750824991351,4.09401476,2442.6,2442.2,4.09466316]
[1750824992451,4.09401476,2442.6,2442.1,7.09797456]
[1750824994058,4.0941845,2442.5,2442.1,3.00322614]
[1750824994266,4.0941845,2442.5,2442.1,7.09805969]
[1750824994426,4.0941845,2442.5,2442.2,0.70980597]
[1750824994626,4.09406764,2442.6,2442.2,0.70980597]
[1750824995254,4.09406764,2442.6,2442.2,2.54280597]
[1750824995255,4.09425363,2442.5,2442.2,2.54280597]
[1750824995757,4.09425363,2442.5,2442.2,1.833]
[1750824995958,4.09417085,2442.5,2442.1,7.05206209]
[1750824996447,4.09417085,2442.5,2442.2,1.833]
[1750824997460,4.09407766,2442.6,2442.2,1.833]
[1750824997754,20.97493089,2442.7,2442.2,5.92766738]
[1750824998052,6.848,2442.7,2442.5,0.8308]
[1750824998629,10.0,2442.8,2442.5,0.8308]
[1750824999029,16.846,2442.8,2442.5,0.8308]
[1750824999639,20.93975268,2442.8,2442.5,0.8308]
[1750824999845,16.846,2442.8,2442.5,0.8308]
[1750825000060,16.846,2442.8,2442.5,1.50662199]
[1750825000870,20.93973933,2442.8,2442.5,1.50662199]
[1750825001062,4.09390195,2442.7,2442.3,2.6015]
[1750825002151,20.93974811,2442.8,2442.3,6.69598682]
[1750825002538,20.93974811,2442.8,2442.4,4.09431857]
[1750825002734,16.846,2442.8,2442.4,4.09431857]
[1750825003234,20.93966382,2442.8,2442.4,4.09431857]
[1750825004067,16.846,2442.8,2442.4,4.09431857]
[1750825004364,4.09340809,2443.0,2442.4,1.19050978]
[1750825004552,4.09340809,2443.0,2442.5,4.09407461]
[1750825004758,0.8006,2443.1,2442.3,2.6015]
[1750825004759,6.835,2443.1,2442.8,4.09362783]
[1750825005662,6.835,2443.1,2442.7,4.09374474]
[1750825005834,6.837,2443.1,2442.7,4.09374474]
[1750825006037,6.835,2443.1,2442.8,0.8292]
[1750825006253,6.835,2443.1,2442.8,1.73088874]
[1750825007259,10.9281958,2443.1,2442.8,1.73088874]
[1750825010966,4.09333455,2443.0,2442.8,1.73088874]
[1750825011154,10.92825257,2443.1,2442.8,1.73088874]
[1750825011335,10.92825257,2443.1,2442.8,0.8292]
[1750825011537,4.09333203,2443.0,2442.6,0.823]
[1750825012281,4.09333203,2443.0,2442.6,4.91699438]